Cogmind - Beta 12 @@@ ROGUE MODE // 2023.05.05 @ 17:06:36 Player: art-hropod Result: Destroyed by G-47 Trooper with Particle Gun Performance ------------- Evolutions (2) 1000 Regions Visited (3) 600 Robots Destroyed (54) 270 Value Destroyed (1439) 1439 Prototype IDs (0) 0 Alien Tech Used (0) 0 Bonus (22) 22 TOTAL SCORE: 3331 Bonus ------- High Alert Combat Kills 22 Cogmind --------- Core Integrity 0/550 Matter 270/300 Energy 50/100 System Corruption 5% Temperature Hot (275) Movement Core (200) Ox3 Location -8/Materials Parts ------- > --- POWER (1) -------- (None) > --- PROPULSION (4) --- Flight Unit Flight Unit > --- UTILITY (4) ------ Medium Storage Unit Signal Interpreter > --- WEAPON (2) ------- (None) > --- INVENTORY (10) --- VTOL Module VTOL Module VTOL Module Improved Flight Unit Improved Heat Sink System Shield Improved Datajack Great Maul Peak State ------------ > --- POWER ------------ Deuterium Engine > --- PROPULSION ------- Aluminum Leg Improved Aluminum Leg Carbon-fiber Leg Titanium Leg > --- UTILITY ---------- Medium Storage Unit Signal Interpreter Hacking Suite System Shield > --- WEAPON ----------- Shock Rifle Shock Rifle > --- INVENTORY -------- Aluminum Leg Flight Unit Flight Unit Flight Unit VTOL Module Improved Flight Unit Melee Analysis Suite Mini Grenade Launcher Improved Datajack Great Maul [Rating: 28] Favorites ----------- Power Deuterium Engine Engine Deuterium Engine Power Core Light Nuclear Core Propulsion Aluminum Leg Leg Aluminum Leg Flight Unit Flight Unit Utility Medium Storage Unit Device Tractor Beam Storage Medium Storage Unit Processor Signal Interpreter Hackware System Shield Weapon Small Laser Energy Gun Small Laser Energy Cannon Ion Cannon Ballistic Gun Light Assault Rifle Launcher Mini Grenade Launcher Impact Weapon Great Maul Slashing Weapon Katana Build | -11 -10 -9 -8 ------- Run | Jun Mat Mat Mat Slots Evolved 4 | . . 2 2 Power . | . . . . Propulsion 2 | . . 2 . Utility 2 | . . . 2 Weapon . | . . . . Parts Attached 65 | 6 7 27 25 Power 9 | 1 2 2 4 Engine 7 | 1 1 2 3 Core 2 | . 1 . 1 Reactor . | . . . . Propulsion 28 | 2 2 13 11 Treads . | . . . . Leg 26 | 2 2 13 9 Wheel . | . . . . Hover . | . . . . Flight 2 | . . . 2 Utility 6 | 1 1 2 2 Device 1 | . 1 . . Storage 2 | 1 . 1 . Processor 1 | . . 1 . Hackware 2 | . . . 2 Protection . | . . . . Artifact . | . . . . Weapon 22 | 2 2 10 8 Energy Gun 9 | 2 1 1 5 Energy Cannon 1 | . . . 1 Ballistic Gun 4 | . 1 3 . Ballistic Cannon . | . . . . Launcher 3 | . . 2 1 Special Weapon . | . . . . Impact Weapon 1 | . . . 1 Slashing Weapon 4 | . . 4 . Piercing Weapon . | . . . . Special Melee Weapon . | . . . . Unidentified Prototypes . | . . . . Corrupted Parts 1 | . . . 1 System Corruption 2 | . . . 2 Parts Lost 24 | . 1 7 16 Power 4 | . . 1 3 Propulsion 12 | . . 5 7 Utility 2 | . . . 2 Weapon 6 | . 1 1 4 Highest Loss Streak 5 | . 1 4 5 To Critical Strikes . | . . . . Average Slot Usage (%) 91 | . 97 95 79 Engine 7 | . 4 8 7 Core 3 | . 9 1 . Leg 31 | . 28 40 24 Device 4 | . 12 1 . Storage 11 | . 14 11 9 Processor 6 | . . 9 9 Hackware 3 | . . . 12 Energy Gun 9 | . 18 4 8 Ballistic Gun 6 | . 9 7 . Impact Weapon 1 | . . . 3 Slashing Weapon 3 | . . 9 . Naked Turns . | . . . . Heaviest Build 26 | 11 13 25 26 Greatest Support 60 | 20 20 60 55 Greatest Overweight (x) 1 | . . . 1 Average Overweight (x) . | . . . . Largest Inventory Capacity 10 | 8 8 10 10 Average Capacity 9 | 7 8 9 10 Most Carried 10 | 6 8 10 10 Average Carried 8 | 4 7 9 9 Final Capacity 10 | 8 8 10 10 Final Carried 10 | 6 8 10 8 Class Distribution -------------------- 63% | Mutant 22% | Scavenger-Mutant 13% | Hacker-Mutant Dominant Class ---------------- Mutant | -10/Materials Mutant | -9/Materials Hacker-Mutant | -8/Materials Resources | -11 -10 -9 -8 ----------- Run | Jun Mat Mat Mat Matter Collected 1004 | 260 102 333 309 Remotely 123 | . 102 21 . Salvage Created 1936 | 66 422 727 721 Parts 105 | 3 24 51 27 Haulers Intercepted 3 | . . 2 1 Recyclers Shooed 4 | . 4 . . Parts Field Recycled . | . . . . Retrieved Matter . | . . . . Parts Self-Destructed . | . . . . Prevented . | . . . . Kills | -11 -10 -9 -8 ------- Run | Jun Mat Mat Mat Combat Hostiles Destroyed 35 | . 8 15 12 Melee 12 | . . 6 6 Guns 13 | . 8 3 2 AOE 6 | . . 6 . Classes Destroyed 12 | 1 3 6 2 Worker 3 | . . 2 1 Builder 3 | . . 1 2 Hauler 3 | . . 2 1 Recycler 5 | 1 2 1 1 Mechanic 1 | . . 1 . Operator 1 | . 1 . . Watcher 3 | . . 2 1 Swarmer 5 | . 3 2 . Grunt 26 | . 5 12 9 Duelist 1 | . . . 1 Sentry 1 | . . 1 . Hunter 2 | . . . 2 Best Kill Streak 9 | 1 5 9 8 Combat Bots Only 8 | . 3 8 4 Max Kills in Single Turn 3 | 1 1 3 1 Gunslinging . | . . . . Exploded 3 | . . 3 . Melee 1 | . . 1 1 Uniques/NPCs Destroyed . | . . . . Combat | -11 -10 -9 -8 -------- Run | Jun Mat Mat Mat Damage Taken 3901 | . 390 1432 2079 Core 906 | . 91 265 550 Absorbed by Shields . | . . . . Core Remaining (%) 65 | 100 63 33 . Volleys Fired 120 | 4 49 44 23 Largest 2 | 2 2 2 2 Hottest 130 | 80 80 79 130 Shots Fired 223 | 8 98 75 42 Gun 209 | 8 98 69 34 Cannon 6 | . . . 6 Launcher 8 | . . 6 2 Special . | . . . . Kinetic 84 | . 32 52 . Thermal 88 | 4 49 17 18 Explosive 8 | . . 6 2 Electromagnetic 43 | 4 17 . 22 Robot Hit Streak 11 | 4 10 10 11 Robot Miss Streak 4 | 1 4 4 3 Penetration Max . | . . . . Secondary Targets 2 | . 1 . 1 Max Gunslinging Chain 1 | . 1 . 1 Shots Hit Robots 186 | 6 58 70 52 Core Hits 79 | 2 25 36 16 Critical Kills 2 | . . . 2 Critical Parts Destroyed 6 | . . . 6 Critical Strikes 11 | . . 3 8 Burn 1 | . . 1 . Smash 8 | . . . 8 Sever 2 | . . 2 . Melee Attacks 62 | . . 25 37 Impact 37 | . . . 37 Slashing 25 | . . 25 . Piercing . | . . . . Sneak Attacks 7 | . . 4 3 Combat Hostiles . | . . . . Follow-up Attacks 4 | . . 4 . Damage Inflicted 5152 | 72 604 2177 2299 Guns 1706 | 72 604 666 364 Cannons 94 | . . . 94 Explosions 1289 | . . 749 540 Melee 2063 | . . 762 1301 Ramming . | . . . . Kinetic 716 | . 177 539 . Thermal 950 | 33 321 127 469 Explosive 1000 | . . 749 251 Electromagnetic 423 | 39 106 . 278 Impact 1301 | . . . 1301 Slashing 762 | . . 762 . Piercing . | . . . . Highest Corruption 5 | . . . 5 Average Corruption 3 | . . . 3 Corruption Purged . | . . . . Corruption Blocked . | . . . . Effects 16 | . . . 16 Message Errors 3 | . . . 3 Matter Fused 4 | . . . 4 Heat Flow Errors 1 | . . . 1 Energy Discharges 3 | . . . 3 Parts Rejected 2 | . . . 2 Data Loss (minor) 2 | . . . 2 Alerts 1 | . . . 1 Overload Shots . | . . . . Overflow Damage 583 | . . 102 481 Projectiles . | . . . . Explosions 94 | . . 25 69 Melee 489 | . . 77 412 Knockbacks 5 | . . . 5 Impact 5 | . . . 5 Kinetic . | . . . . Secondary . | . . . . Self-Inflicted Damage 96 | . . 96 . Shots 5 | . . 5 . Rammed . | . . . . Targets Rammed . | . . . . Kicked . | . . . . Crushed . | . . . . Highest Temperature 256 | 54 168 72 256 Average Temperature 42 | 25 45 18 62 Received Heat Transfer 1770 | . 153 663 954 Siege Activations . | . . . . Robots Corrupted 1 | . . . 1 Combat Hostiles 1 | . . . 1 Parts Fried 8 | . . . 8 Impact Corruptions 15 | . . . 15 Robots Melted . | . . . . Combat Hostiles . | . . . . Parts Melted . | . . . . Heat Transferred 1802 | 75 750 407 570 Parts Sabotaged . | . . . . Parts Stolen . | . . . . Parts Stripped . | . . . . Power Chain Reactions . | . . . . Missiles Intercepted . | . . . . Alert | -11 -10 -9 -8 ------- Run | Jun Mat Mat Mat Peak Influence 443 | 5 138 362 443 Initial 95 | . 3 54 95 Average 185 | 1 93 184 301 Maximum Alert Level 2 | . . 1 2 Low Security (%) 54 | 100 100 48 10 Level 1 43 | . . 51 81 Level 2 2 | . . . 8 Level 3 . | . . . . Level 4 . | . . . . Level 5 . | . . . . High Security . | . . . . Max Security . | . . . . Squads Dispatched 10 | . 2 4 4 Investigation 2 | . . . 2 Extermination . | . . . . Reinforcement 8 | . 2 4 2 Assault . | . . . . Garrison . | . . . . Intercept . | . . . . Searches Triggered . | . . . . Construction Impeded . | . . . . Haulers Reinforced . | . . . . Active Scanning Responses . | . . . . Cargo Convoy Interrupts . | . . . . Stealth | -11 -10 -9 -8 --------- Run | Jun Mat Mat Mat Distress Signals 3 | . . 3 . Communications Jammed . | . . . . Distress Signals . | . . . . Times Spotted 83 | . 18 31 34 Peak Tracking Total 9 | . 4 9 9 Tactical Retreats 8 | . . 3 5 Traps | -11 -10 -9 -8 ------- Run | Jun Mat Mat Mat Traps Triggered 3 | . . 1 2 Indirectly . | . . . . Trap Hack Attempts . | . . . . Triggered . | . . . . Disarmed . | . . . . Reprogrammed . | . . . . Reused . | . . . . Traps Extracted . | . . . . Installed . | . . . . Triggered . | . . . . Machines | -11 -10 -9 -8 ---------- Run | Jun Mat Mat Mat Machines Disabled 2 | . . . 2 Max in Single Turn 2 | . . . 2 Garrison Access 1 | . . . 1 Machines Repaired . | . . . . Machines Sabotaged . | . . . . Overloaded Fab Kills . | . . . . Hacking | -11 -10 -9 -8 --------- Run | Jun Mat Mat Mat Machines Accessed 11 | . 3 3 5 Terminals 9 | . 3 2 4 Fabricators . | . . . . Repair Stations . | . . . . Recycling Units . | . . . . Scanalyzers 1 | . . 1 . Garrison Access 1 | . . . 1 Total Hacks 32 | . 8 12 12 Successful 15 | . 3 7 5 Failed 17 | . 5 5 7 Catastrophic 4 | . . 2 2 Database Lockouts . | . . . . Manual 27 | . 8 8 11 Terminals 27 | . 8 8 11 Fabricators . | . . . . Repair Stations . | . . . . Recycling Units . | . . . . Scanalyzers 4 | . . 4 . Garrison Access 1 | . . . 1 Terminal Hacks 1 | . . 1 . Level Access Points 1 | . . 1 . Fabricator Hacks . | . . . . Repair Station Hacks . | . . . . Recycling Unit Hacks . | . . . . Scanalyzer 4 | . . 4 . Insert Component 1 | . . 1 . Analyze 3 | . . 3 . Garrison Access Hacks 1 | . . . 1 Seal Access 1 | . . . 1 Unauthorized Hacks 9 | . 3 2 4 Terminals 9 | . 3 2 4 Botnet 8 | . 2 2 4 Operators 1 | . 1 . . Fabricators . | . . . . Repair Stations . | . . . . Recycling Units . | . . . . Scanalyzers . | . . . . Garrison Access . | . . . . Data Cores Recovered . | . . . . Used . | . . . . Hacking Detections 7 | . 3 1 3 Full Trace Events 2 | . . . 2 Feedback Events . | . . . . Feedback Blocked . | . . . . Robot Schematics Acquired . | . . . . Robots Built . | . . . . Authchips . | . . . . Time . | . . . . Total Robot Build Rating . | . . . . Part Schematics Acquired 1 | . . 1 . Parts Built . | . . . . Authchips . | . . . . Time . | . . . . Total Part Build Rating . | . . . . Parts Repaired . | . . . . Time . | . . . . Parts Recycled . | . . . . Recycled Matter . | . . . . Retrieved Matter . | . . . . Retrieved Components . | . . . . Parts Scanalyzed 1 | . . 1 . Part Schematics Acquired 1 | . . 1 . Parts Damaged . | . . . . Bothacking | -11 -10 -9 -8 ------------ Run | Jun Mat Mat Mat Used RIF Installer . | . . . . Robots Hacked . | . . . . Non-combat . | . . . . Combat . | . . . . Robot Hacks Applied . | . . . . Relay Couplers Released . | . . . . Fabnet Peak Effective % . | . . . . Robots Rewired . | . . . . Allies Hacked . | . . . . Hacks Repelled . | . . . . Allies | -11 -10 -9 -8 -------- Run | Jun Mat Mat Mat Total Allies . | . . . . Largest Group . | . . . . Highest-Rated Group . | . . . . Highest-Rated Ally . | . . . . Total Orders . | . . . . Ally Attacks . | . . . . Total Damage . | . . . . Kills . | . . . . Allies Corrupted . | . . . . Allies Melted . | . . . . Intel | -11 -10 -9 -8 ------- Run | Jun Mat Mat Mat Robot Analysis Total . | . . . . Derelict Logs Recovered . | . . . . Drone Launches . | . . . . Drone Recoveries . | . . . . Exploration | -11 -10 -9 -8 ------------- Run | Jun Mat Mat Mat Turns Passed 2291 | 86 678 847 680 Spaces Moved 1351 | 54 427 502 368 Core 11 | 11 . . . Treads . | . . . . Legs 1340 | 43 427 502 368 Wheels . | . . . . Hover . | . . . . Flight . | . . . . Fastest Speed 50 | 50 120 120 120 Average Speed 120 | 105 120 120 122 Slowest Speed 200 | 120 120 120 200 Overloaded Moves . | . . . . Propulsion Burnouts . | . . . . Robots Hopped . | . . . . Cave-ins Triggered . | . . . . Exploration Rate (%) 40 | 5 60 54 41 Regions Visited 3 Branch Regions . Pre-discovered Areas . | . . . . Known Exits Taken 1 | . . 1 . Unknown Exits Taken 2 | 1 1 . . Scrap Searched . | . . . . Spaces Dug . | . . . . Terrain Destroyed 70 | . . 15 55 Melee . | . . . . Projectile . | . . . . AOE 70 | . . 15 55 Terrain Rammed . | . . . . Walls Destroyed . | . . . . Machines Disabled . | . . . . Actions | -11 -10 -9 -8 --------- Run | Jun Mat Mat Mat Total 1701 | 75 506 640 480 Wait 23 | . 2 18 3 Move 1348 | 53 426 501 368 Hop . | . . . . Pick Up 47 | 12 11 11 13 Fast Attach 24 | . . 14 10 Attach 24 | 6 3 4 11 Detach . | . . . . Swap 17 | . 4 9 4 Drop 40 | . 11 18 11 Fire 120 | 4 49 44 23 Melee 58 | . . 21 37 Ram . | . . . . Kick . | . . . . Crush . | . . . . Escape Stasis . | . . . . Rewire . | . . . . Trap . | . . . . Miscellaneous . | . . . . Route ------- -11/Junkyard -10/Materials (discovered 4 exits: *Mat x2 / [*Min x2]) -9/Materials (discovered 4 exits: *Mat x3 / [*Min]) -8/Materials History --------- Turn | Location | Event 3 | -11/Junkyard | Discovered new exit (range 15) 87 | -11/Junkyard | Entered Materials 212 | -10/Materials | Discovered new exit (range 15) 326 | -10/Materials | Build established: Mutant 341 | -10/Materials | Discovered new exit (range 16) 522 | -10/Materials | Discovered new exit (range 14) 607 | -10/Materials | Discovered new exit (range 13) 765 | -10/Materials | Entered another Materials area 765 | -9/Materials | Evolved 2 slots: Propulsion x2 985 | -9/Materials | Discovered new exit (range 16) 1201 | -9/Materials | Lost 4 parts (1p2n1w) 1209 | -9/Materials | Destroyed 8 combat bots 1378 | -9/Materials | Core integrity fell below 50% 1524 | -9/Materials | Identified exit to Materials 1612 | -9/Materials | Entered another Materials area 1612 | -8/Materials | Evolved 2 slots: Utility x2 1875 | -8/Materials | Lost 4 parts (3n1w) 1947 | -8/Materials | Build established: Hacker-Mutant 1974 | -8/Materials | Core integrity fell below 50% 2060 | -8/Materials | Lost 3 parts (1p2n) 2289 | -8/Materials | Core integrity fell below 20% 2292 | -8/Materials | Destroyed by G-47 Trooper with Particle Gun Last Messages --------------- >>Trojan(Botnet) Trojan loaded successfully. Testing... Terminal linked with 2 systems. Awaiting botnet instructions. 02256_ ALERT: Suspicious activity at Terminal M008. Dispatching Investigation squad. 02257_ System corrupted: Energy discharge (-31). 02280_ Critical hit (Burn: +37). 02281_ System Shield destroyed. 02282_ T-07 Excavator suffers critical hit (Burn). 02282_ T-07 Excavator destroyed. 02286_ Aluminum Leg destroyed. 02287_ Critical hit (Burn: +37). 02288_ Ion Cannon destroyed. 02289_ Lgt. Ion Engine destroyed. 02289_ Critical hit (Burn: +37). 02290_ Particle Gun destroyed. 02290_ Dropped Carbon-fiber Leg. 02291_ Dropped Aluminum Leg. Map ----- +----------------------------------------------------+ | ##???????????????# #????????????? | | #???????????????# #????????????? | | #???????????????# ####### #????????????? | | #?????????###???## ##????????###?????????????? | | #?????????# ??# #?????????????????????????? | | #?????????? """" # #?????????????????????????? | | #?????????? """" + +?????????????????????????? | | ##?????????? """" # #?????????????????????????? | | ???????????# ??# #?????????????????????????? | | ???????????# ]????# #?????????????????????????? | | ???????????#??????# #?????????????????????????? | | ??????????????????# #?????????????????????????? | | ??????????????????# #?????????????????????????? | | ??????????????????# #?????????????????????????? | | ??????????????????# #?????????????????????????? | | ?????????#????????# #?????????????????????????? | | ?????????# ??????# #?????????????????????????? | | ?????????# ????# #?????????????????????????? | | ?????????# ??# #?????????????????????????? | | ?????????# # #?????????????????????????? | | ?????????# + +?????????????????????????? | | ?????????# # #?????????????????????????? | | ?????????# ??# #?????????????????????????? | | ?????????#####???## ##????????????????????????? | | ??????############ ########?????????????????? | | ???? m Yg@= #?????????????????? | | ??????????# T gYg #?????????????????? | | ??????????# ! g gYg ########??????????? | | ??????????# #### #### #]]!!!!#??????????? | | ??????????# ????#######??# #]]!!!!#??????????? | | ??????????# ??????????????# # #??????????? | | ??????????#???????????????# # #??????????? | | ??????????????????????????# #??????????? | | ??????????????????????????# #??????????? | | ??????????????????????????# #??????????? | | ??????????????????????????############??????????? | | ????????????????????????????????????????????????? | | ????????????????????????????????????????????????? | | ????????????????????????????????????????????????? | | ????????????????????????????????????????????????? | | ????????????????????????????????????????????????? | | ????????????????????????????????????????????????? | | ????????????????????????????????????????????????? | | ????????????????????????????????????????????????? | | ????????????????????????????????????????????????? | | ????????????????????????????????????????????????? | | ????????????????????????????????????????????????? | | ????????????????????????????????????????????????? | | ????????????????????????????????????????????????? | | ????????????????????????????????????????????????? | +----------------------------------------------------+ Best States ------------- Heat Dissipation 31 Energy Generation 14 Energy Capacity 275 Matter Stores 300 Matter Capacity 300 Sight Range 16 Terrain Scan Density 10 Evasion (%) 55 Offensive Hacking 10 Defensive Hacking 10 Item Schematics ----------------- Hacking Suite | -9/Materials | Scanalyzed Robot Schematics ------------------ None Fabricated ------------ Nothing Alien Tech Used ----------------- None Achievements -------------- None Challenges ------------ None Game ------ Seed DispersionDeepFlakker Manual? 0 Play Time 00:32:51 Cumulative 43.8 hours Start 2023.05.05 @ 16:14:14 End 2023.05.05 @ 17:06:36 Sessions 3 Manual Loads 0 Difficulty Rogue Special Mode None Game No. 55 Rogue 39 Adventurer 9 Explorer 7 Win Type - Total 3 Types 3/0/0/0/0/0/0/0/0 Lore% 13 Gallery% 35 Achievement% 28 Wizard Run 0 Options --------- ASCII 0 Keyboard 0 Movement Mouse Keybinds 0 Fullscreen 1 Font 32/Terminus Map View 63x52 Tactical HUD 1 Map Filters NONE Filters NONE Steam X RUN: 1b84f282-7564-4854-a400-2c7e13204b2a